[Event "Titled Tuesday Blitz December 7 2021"]
[White "Tarlabasi, Emirhan"]
[Black "Hakemi, Arman"]
[WhiteFideId "6350275"]
[BlackFideId "22520805"]
[WhiteElo "2487"]
[BlackElo "2650"]
[Result "0-1"]
[Round "08"]
[TimeControl "180+1"]
[Date "2021.12.07"]
[WhiteClock "0:00:05"]
[BlackClock "0:00:06"]

1. e4 {[%clk 0:03:00]}  c5 {[%clk 0:02:57]} 2. Nf3 {[%clk 0:03:00]}  e6 {[%clk 0:02:57]} 3. d4 {[%clk 0:03:00]}  cxd4 {[%clk 0:02:58]} 4. Nxd4 {[%clk 0:03:01]}  Nc6 {[%clk 0:02:59]} 5. Nc3 {[%clk 0:03:01]}  Qc7 {[%clk 0:02:58]} 6. g3 {[%clk 0:02:56]}  a6 {[%clk 0:02:57]} 7. Bg2 {[%clk 0:02:55]}  Nf6 {[%clk 0:02:57]} 8. Be3 {[%clk 0:02:51]}  h5 {[%clk 0:02:54]} 9. h3 {[%clk 0:02:47]}  d6 {[%clk 0:02:43]} 10. a3 {[%clk 0:02:44]}  Be7 {[%clk 0:02:36]} 11. O-O {[%clk 0:02:42]}  Nxd4 {[%clk 0:02:31]} 12. Bxd4 {[%clk 0:02:40]}  e5 {[%clk 0:02:32]} 13. Be3 {[%clk 0:02:39]}  Be6 {[%clk 0:02:32]} 14. f4 {[%clk 0:02:36]}  exf4 {[%clk 0:02:29]} 15. gxf4 {[%clk 0:02:33]}  b5 {[%clk 0:02:18]} 16. e5 {[%clk 0:02:25]}  dxe5 {[%clk 0:02:10]} 17. Bxa8 {[%clk 0:02:22]}  exf4 {[%clk 0:02:10]} 18. Rxf4 {[%clk 0:02:11]}  Bd6 {[%clk 0:01:41]} 19. Rd4 {[%clk 0:02:01]}  Bc5 {[%clk 0:01:26]} 20. Rd8+ {[%clk 0:01:28]}  Ke7 {[%clk 0:01:25]} 21. Rxh8 {[%clk 0:01:19]}  Bxe3+ {[%clk 0:01:10]} 22. Kh1 {[%clk 0:01:11]}  Bb6 {[%clk 0:00:57]} 23. Bg2 {[%clk 0:01:00]}  Qe5 {[%clk 0:00:46]} 24. Qe2 {[%clk 0:00:51]}  Qg3 {[%clk 0:00:43]} 25. Qf3 {[%clk 0:00:39]}  Qe5 {[%clk 0:00:42]} 26. Qb7+ {[%clk 0:00:38]}  Bc7 {[%clk 0:00:43]} 27. Kg1 {[%clk 0:00:32]}  Qh2+ {[%clk 0:00:38]} 28. Kf2 {[%clk 0:00:20]}  Qg3+ {[%clk 0:00:25]} 29. Kg1 {[%clk 0:00:18]}  Qe3+ {[%clk 0:00:21]} 30. Kh1 {[%clk 0:00:17]}  Qe5 {[%clk 0:00:21]} 31. Kg1 {[%clk 0:00:16]}  g5 {[%clk 0:00:17]} 32. Rd1 {[%clk 0:00:12]}  Ne8 {[%clk 0:00:10]} 33. Nd5+ {[%clk 0:00:08]}  Bxd5 {[%clk 0:00:06]} 34. Qxd5 {[%clk 0:00:09]}  Qxh8 {[%clk 0:00:03]} 35. Qd7+ {[%clk 0:00:06]}  Kf8 {[%clk 0:00:04]} 36. Re1 {[%clk 0:00:06]}  Bb6+ {[%clk 0:00:04]} 37. Kh1 {[%clk 0:00:06]}  Nf6 {[%clk 0:00:04]} 38. Qd6+ {[%clk 0:00:04]}  Kg7 {[%clk 0:00:04]} 39. Qxb6 {[%clk 0:00:04]}  Qc8 {[%clk 0:00:04]} 40. Qd4 {[%clk 0:00:03]}  Qxc2 {[%clk 0:00:04]} 41. Rf1 {[%clk 0:00:04]}  Qg6 {[%clk 0:00:05]} 42. Be4 {[%clk 0:00:04]}  Qh6 {[%clk 0:00:05]} 43. Qe5 {[%clk 0:00:04]}  g4 {[%clk 0:00:05]} 44. Rxf6 {[%clk 0:00:04]}  Qxf6 {[%clk 0:00:06]} 45. Qxf6+ {[%clk 0:00:05]}  Kxf6 {[%clk 0:00:07]} 46. hxg4 {[%clk 0:00:06]}  hxg4 {[%clk 0:00:08]} 47. Kg2 {[%clk 0:00:06]}  Ke5 {[%clk 0:00:08]} 48. Bb7 {[%clk 0:00:07]}  a5 {[%clk 0:00:08]} 49. Ba6 {[%clk 0:00:07]}  b4 {[%clk 0:00:09]} 50. axb4 {[%clk 0:00:08]}  axb4 {[%clk 0:00:10]} 51. b3 {[%clk 0:00:08]}  f5 {[%clk 0:00:11]} 52. Bc4 {[%clk 0:00:09]}  Kf4 {[%clk 0:00:11]} 53. Be6 {[%clk 0:00:08]}  Ke5 {[%clk 0:00:12]} 54. Bd7 {[%clk 0:00:08]}  Kf4 {[%clk 0:00:12]} 55. Kf2 {[%clk 0:00:09]}  Kg5 {[%clk 0:00:13]} 56. Kg3 {[%clk 0:00:09]}  f4+ {[%clk 0:00:13]} 57. Kf2 {[%clk 0:00:09]}  Kh4 {[%clk 0:00:14]} 58. Kg2 {[%clk 0:00:09]}  Kg5 {[%clk 0:00:14]} 59. Kf2 {[%clk 0:00:09]}  Kh5 {[%clk 0:00:15]} 60. Ke2 {[%clk 0:00:09]}  Kh4 {[%clk 0:00:15]} 61. Kd3 {[%clk 0:00:09]}  Kg3 {[%clk 0:00:14]} 62. Ke4 {[%clk 0:00:09]}  f3 {[%clk 0:00:13]} 63. Ke3 {[%clk 0:00:10]}  f2 {[%clk 0:00:12]} 64. Bb5 {[%clk 0:00:10]}  Kg2 {[%clk 0:00:08]} 65. Kf4 {[%clk 0:00:08]}  g3 {[%clk 0:00:08]} 66. Bc6+ {[%clk 0:00:08]}  Kg1 {[%clk 0:00:07]} 67. Bb5 {[%clk 0:00:05]}  g2 {[%clk 0:00:06]} 0-1


[Site "https://www.chess.com"]

[Event "Titled Tuesday Blitz December 7 2021"]
[White "Todorovic, Bojan"]
[Black "Zhigalko, Sergei"]
[WhiteFideId "917087"]
[BlackFideId "13502956"]
[WhiteElo "2359"]
[BlackElo "2905"]
[Result "0-1"]
[Round "08"]
[TimeControl "180+1"]
[Date "2021.12.07"]
[WhiteClock "0:00:05"]
[BlackClock "0:00:39"]

1. Nf3 {[%clk 0:02:59]}  d5 {[%clk 0:03:00]} 2. g3 {[%clk 0:02:57]}  c6 {[%clk 0:03:00]} 3. Bg2 {[%clk 0:02:57]}  Bg4 {[%clk 0:03:01]} 4. O-O {[%clk 0:02:57]}  Nd7 {[%clk 0:03:01]} 5. d3 {[%clk 0:02:56]}  e6 {[%clk 0:03:01]} 6. Nbd2 {[%clk 0:02:56]}  Bd6 {[%clk 0:03:02]} 7. b3 {[%clk 0:02:56]}  Ne7 {[%clk 0:03:02]} 8. Bb2 {[%clk 0:02:56]}  O-O {[%clk 0:03:02]} 9. e4 {[%clk 0:02:52]}  a5 {[%clk 0:03:02]} 10. a4 {[%clk 0:02:51]}  Re8 {[%clk 0:03:02]} 11. Qe2 {[%clk 0:02:46]}  Bh5 {[%clk 0:02:56]} 12. Rfe1 {[%clk 0:02:45]}  Qb6 {[%clk 0:02:54]} 13. Nf1 {[%clk 0:02:37]}  Rad8 {[%clk 0:02:49]} 14. h4 {[%clk 0:02:34]}  f6 {[%clk 0:02:46]} 15. Bh3 {[%clk 0:02:28]}  e5 {[%clk 0:02:40]} 16. Be6+ {[%clk 0:02:22]}  Kh8 {[%clk 0:02:33]} 17. N1h2 {[%clk 0:02:20]}  Nc5 {[%clk 0:02:29]} 18. Bh3 {[%clk 0:02:10]}  Nc8 {[%clk 0:02:06]} 19. g4 {[%clk 0:02:03]}  Bf7 {[%clk 0:02:06]} 20. g5 {[%clk 0:02:03]}  dxe4 {[%clk 0:01:50]} 21. dxe4 {[%clk 0:02:01]}  Ne6 {[%clk 0:01:50]} 22. Bc1 {[%clk 0:01:53]}  Bb4 {[%clk 0:01:47]} 23. Rf1 {[%clk 0:01:46]}  Nd6 {[%clk 0:01:39]} 24. Kh1 {[%clk 0:01:37]}  Bg6 {[%clk 0:01:27]} 25. gxf6 {[%clk 0:01:18]}  gxf6 {[%clk 0:01:26]} 26. Ng4 {[%clk 0:00:50]}  Bxe4 {[%clk 0:01:13]} 27. Nxf6 {[%clk 0:00:44]}  Nd4 {[%clk 0:01:13]} 28. Qxe4 {[%clk 0:00:14]}  Nxe4 {[%clk 0:01:11]} 29. Nxd4 {[%clk 0:00:12]}  Nxf6 {[%clk 0:00:56]} 30. Ne6 {[%clk 0:00:09]}  Rd6 {[%clk 0:00:50]} 31. Be3 {[%clk 0:00:08]}  c5 {[%clk 0:00:48]} 32. Ng5 {[%clk 0:00:06]}  Qc7 {[%clk 0:00:44]} 33. Rg1 {[%clk 0:00:05]}  h6 {[%clk 0:00:39]} 0-1


[Site "https://www.chess.com"]

[Event "Titled Tuesday Blitz December 7 2021"]
[White "Vantika, Agrawal"]
[Black "Maksimenko, Viktor"]
[WhiteFideId "25050389"]
[BlackFideId "13710478"]
[WhiteElo "2496"]
[BlackElo "2665"]
[Result "1-0"]
[Round "08"]
[TimeControl "180+1"]
[Date "2021.12.07"]
[WhiteClock "0:02:17"]
[BlackClock "0:02:17"]

1. Nf3 {[%clk 0:03:00]}  d5 {[%clk 0:02:40]} 2. e3 {[%clk 0:02:57]}  Nf6 {[%clk 0:02:39]} 3. c4 {[%clk 0:02:56]}  e6 {[%clk 0:02:38]} 4. b3 {[%clk 0:02:55]}  c5 {[%clk 0:02:36]} 5. Bb2 {[%clk 0:02:55]}  Nc6 {[%clk 0:02:37]} 6. cxd5 {[%clk 0:02:53]}  exd5 {[%clk 0:02:37]} 7. d4 {[%clk 0:02:52]}  Nxd4 {[%clk 0:02:38]} 8. exd4 {[%clk 0:02:51]}  Be6 {[%clk 0:02:34]} 9. Bb5+ {[%clk 0:02:46]}  Bd7 {[%clk 0:02:31]} 10. Bxd7+ {[%clk 0:02:46]}  Qxd7 {[%clk 0:02:32]} 11. O-O {[%clk 0:02:46]}  Be7 {[%clk 0:02:32]} 12. dxc5 {[%clk 0:02:45]}  O-O {[%clk 0:02:31]} 13. b4 {[%clk 0:02:38]}  a5 {[%clk 0:02:30]} 14. a3 {[%clk 0:02:38]}  Ra6 {[%clk 0:02:28]} 15. Nbd2 {[%clk 0:02:36]}  Bd8 {[%clk 0:02:23]} 16. Ne5 {[%clk 0:02:28]}  Qf5 {[%clk 0:02:20]} 17. Ndf3 {[%clk 0:02:23]}  Bc7 {[%clk 0:02:17]} 18. Re1 {[%clk 0:02:21]}  Ne4 {[%clk 0:02:17]} 19. Qxd5 {[%clk 0:02:17]} 1-0


[Site "https://www.chess.com"]

[Event "Titled Tuesday Blitz December 7 2021"]
[White "Vovk, Orest"]
[Black "Licznerski, Lukasz"]
[WhiteFideId "14113490"]
[BlackFideId "1179250"]
[WhiteElo "2535"]
[BlackElo "2732"]
[Result "1-0"]
[Round "08"]
[TimeControl "180+1"]
[Date "2021.12.07"]
[WhiteClock "0:00:12"]
[BlackClock "0:00:01"]

1. e4 {[%clk 0:03:00]}  c6 {[%clk 0:03:00]} 2. Nf3 {[%clk 0:03:00]}  d5 {[%clk 0:03:01]} 3. d3 {[%clk 0:02:59]}  Bg4 {[%clk 0:02:55]} 4. Be2 {[%clk 0:02:58]}  Nf6 {[%clk 0:02:54]} 5. e5 {[%clk 0:02:55]}  Nfd7 {[%clk 0:02:54]} 6. Bf4 {[%clk 0:02:51]}  e6 {[%clk 0:02:50]} 7. h3 {[%clk 0:02:49]}  Bxf3 {[%clk 0:02:50]} 8. Bxf3 {[%clk 0:02:49]}  c5 {[%clk 0:02:50]} 9. c4 {[%clk 0:02:46]}  Nc6 {[%clk 0:02:24]} 10. cxd5 {[%clk 0:02:43]}  exd5 {[%clk 0:02:25]} 11. Bxd5 {[%clk 0:02:22]}  Ndxe5 {[%clk 0:02:25]} 12. Bxc6+ {[%clk 0:02:19]}  Nxc6 {[%clk 0:02:25]} 13. O-O {[%clk 0:02:17]}  Be7 {[%clk 0:02:24]} 14. Qb3 {[%clk 0:02:14]}  Nd4 {[%clk 0:02:14]} 15. Qxb7 {[%clk 0:01:42]}  Ne2+ {[%clk 0:02:13]} 16. Kh1 {[%clk 0:01:39]}  Nxf4 {[%clk 0:02:14]} 17. Qc6+ {[%clk 0:01:25]}  Kf8 {[%clk 0:02:13]} 18. Nc3 {[%clk 0:01:21]}  g6 {[%clk 0:02:01]} 19. Rae1 {[%clk 0:01:00]}  Kg7 {[%clk 0:01:59]} 20. Qe4 {[%clk 0:00:57]}  Ne6 {[%clk 0:01:45]} 21. f4 {[%clk 0:00:57]}  Qd4 {[%clk 0:01:39]} 22. Qb7 {[%clk 0:00:52]}  Rhe8 {[%clk 0:01:03]} 23. f5 {[%clk 0:00:49]}  gxf5 {[%clk 0:01:01]} 24. Rxf5 {[%clk 0:00:47]}  Kg8 {[%clk 0:00:31]} 25. Nd5 {[%clk 0:00:38]}  Kf8 {[%clk 0:00:04]} 26. Nxe7 {[%clk 0:00:25]}  Rab8 {[%clk 0:00:05]} 27. Ng6+ {[%clk 0:00:22]}  Kg7 {[%clk 0:00:02]} 28. Qxf7+ {[%clk 0:00:20]}  Kh6 {[%clk 0:00:02]} 29. Ne5 {[%clk 0:00:12]}  Rg8 {[%clk 0:00:01]} 30. Rh5# {[%clk 0:00:12]} 1-0


[Site "https://www.chess.com"]

[Event "Titled Tuesday Blitz December 7 2021"]
[White "Weetik, Vjacheslav"]
[Black "Osmonbekov, Talaibek"]
[WhiteFideId "4153472"]
[BlackFideId "2017253"]
[WhiteElo "2705"]
[BlackElo "2211"]
[Result "1-0"]
[Round "08"]
[TimeControl "180+1"]
[Date "2021.12.07"]
[WhiteClock "0:00:15"]
[BlackClock "0:00:01"]

1. g4 {[%clk 0:02:58]}  e5 {[%clk 0:02:54]} 2. d4 {[%clk 0:02:52]}  exd4 {[%clk 0:02:52]} 3. Qxd4 {[%clk 0:02:52]}  Nc6 {[%clk 0:02:51]} 4. Qa4 {[%clk 0:02:52]}  Bc5 {[%clk 0:02:48]} 5. Nf3 {[%clk 0:02:46]}  d6 {[%clk 0:02:45]} 6. Nc3 {[%clk 0:02:45]}  Bd7 {[%clk 0:02:42]} 7. Qe4+ {[%clk 0:02:34]}  Qe7 {[%clk 0:02:38]} 8. g5 {[%clk 0:01:50]}  Nb4 {[%clk 0:02:26]} 9. Kd1 {[%clk 0:01:22]}  Bc6 {[%clk 0:02:25]} 10. Qxe7+ {[%clk 0:01:21]}  Nxe7 {[%clk 0:02:24]} 11. a3 {[%clk 0:01:20]}  Nbd5 {[%clk 0:02:19]} 12. Ne4 {[%clk 0:01:19]}  Ne3+ {[%clk 0:01:57]} 13. Bxe3 {[%clk 0:01:19]}  Bxe4 {[%clk 0:01:48]} 14. Bxc5 {[%clk 0:01:19]}  dxc5 {[%clk 0:01:49]} 15. Bh3 {[%clk 0:01:14]}  Nf5 {[%clk 0:01:44]} 16. Bxf5 {[%clk 0:01:03]}  Bxf5 {[%clk 0:01:43]} 17. Nd2 {[%clk 0:00:59]}  O-O-O {[%clk 0:01:42]} 18. Kc1 {[%clk 0:00:55]}  Rhe8 {[%clk 0:01:22]} 19. Re1 {[%clk 0:00:51]}  Rd4 {[%clk 0:01:17]} 20. e4 {[%clk 0:00:47]}  Red8 {[%clk 0:01:05]} 21. Nb3 {[%clk 0:00:34]}  Rxe4 {[%clk 0:01:03]} 22. Rxe4 {[%clk 0:00:34]}  Bxe4 {[%clk 0:01:04]} 23. Nxc5 {[%clk 0:00:35]}  Bf3 {[%clk 0:01:00]} 24. Nd3 {[%clk 0:00:31]}  Rd5 {[%clk 0:00:54]} 25. h4 {[%clk 0:00:31]}  Rd4 {[%clk 0:00:53]} 26. Kd2 {[%clk 0:00:30]}  Rxh4 {[%clk 0:00:52]} 27. Re1 {[%clk 0:00:30]}  Be4 {[%clk 0:00:40]} 28. Ne5 {[%clk 0:00:27]}  Bd5 {[%clk 0:00:28]} 29. Re3 {[%clk 0:00:23]}  Rh2 {[%clk 0:00:24]} 30. Ke2 {[%clk 0:00:22]}  h5 {[%clk 0:00:19]} 31. gxh6 {[%clk 0:00:20]}  gxh6 {[%clk 0:00:19]} 32. Rg3 {[%clk 0:00:21]}  Kd8 {[%clk 0:00:15]} 33. Ke3 {[%clk 0:00:19]}  Ke7 {[%clk 0:00:14]} 34. Ng4 {[%clk 0:00:16]}  Rh1 {[%clk 0:00:10]} 35. Kf4 {[%clk 0:00:14]}  Be6 {[%clk 0:00:10]} 36. Ne3 {[%clk 0:00:14]}  h5 {[%clk 0:00:09]} 37. Rg7 {[%clk 0:00:14]}  h4 {[%clk 0:00:09]} 38. Rh7 {[%clk 0:00:14]}  h3 {[%clk 0:00:09]} 39. Ke5 {[%clk 0:00:14]}  Re1 {[%clk 0:00:07]} 40. Kf4 {[%clk 0:00:13]}  Re2 {[%clk 0:00:07]} 41. Kf3 {[%clk 0:00:13]}  Rd2 {[%clk 0:00:04]} 42. Rh6 {[%clk 0:00:13]}  c5 {[%clk 0:00:02]} 43. b3 {[%clk 0:00:13]}  b5 {[%clk 0:00:02]} 44. Kg3 {[%clk 0:00:13]}  a5 {[%clk 0:00:02]} 45. Kf3 {[%clk 0:00:14]}  a4 {[%clk 0:00:02]} 46. bxa4 {[%clk 0:00:13]}  bxa4 {[%clk 0:00:03]} 47. Kg3 {[%clk 0:00:14]}  c4 {[%clk 0:00:03]} 48. Kf3 {[%clk 0:00:14]}  c3 {[%clk 0:00:04]} 49. Kg3 {[%clk 0:00:14]}  Re2 {[%clk 0:00:04]} 50. Rh4 {[%clk 0:00:15]}  Re1 {[%clk 0:00:04]} 51. Rxa4 {[%clk 0:00:15]}  Ra1 {[%clk 0:00:03]} 52. Ra5 {[%clk 0:00:13]}  h2 {[%clk 0:00:03]} 53. Kxh2 {[%clk 0:00:14]}  Ra2 {[%clk 0:00:02]} 54. Kg3 {[%clk 0:00:14]}  Kf6 {[%clk 0:00:01]} 55. Kf4 {[%clk 0:00:14]}  Ke7 {[%clk 0:00:01]} 56. Ke4 {[%clk 0:00:14]}  Ra1 {[%clk 0:00:01]} 57. Kd4 {[%clk 0:00:15]} 1-0


[Site "https://www.chess.com"]

[Event "Titled Tuesday Blitz December 7 2021"]
[White "Yakimova, Mariya"]
[Black "Nozdrachev, Leonid"]
[WhiteFideId "34188859"]
[BlackFideId "24113433"]
[WhiteElo "2486"]
[BlackElo "2639"]
[Result "0-1"]
[Round "08"]
[TimeControl "180+1"]
[Date "2021.12.07"]
[WhiteClock "0:00:03"]
[BlackClock "0:00:26"]

1. d4 {[%clk 0:03:00]}  d6 {[%clk 0:02:59]} 2. c4 {[%clk 0:03:00]}  e5 {[%clk 0:02:58]} 3. Nf3 {[%clk 0:03:01]}  e4 {[%clk 0:02:57]} 4. Ng5 {[%clk 0:03:00]}  f5 {[%clk 0:02:57]} 5. g3 {[%clk 0:02:58]}  Nf6 {[%clk 0:02:57]} 6. Bg2 {[%clk 0:02:57]}  Na6 {[%clk 0:02:56]} 7. O-O {[%clk 0:02:57]}  c6 {[%clk 0:02:57]} 8. Nc3 {[%clk 0:02:57]}  Be7 {[%clk 0:02:56]} 9. f3 {[%clk 0:02:26]}  h6 {[%clk 0:02:39]} 10. Nh3 {[%clk 0:02:26]}  exf3 {[%clk 0:02:39]} 11. exf3 {[%clk 0:02:27]}  O-O {[%clk 0:02:35]} 12. Re1 {[%clk 0:02:27]}  g5 {[%clk 0:02:25]} 13. b3 {[%clk 0:02:03]}  Nc7 {[%clk 0:02:16]} 14. d5 {[%clk 0:02:01]}  cxd5 {[%clk 0:02:07]} 15. cxd5 {[%clk 0:02:02]}  Bd7 {[%clk 0:02:03]} 16. Bb2 {[%clk 0:02:01]}  Rc8 {[%clk 0:01:59]} 17. Nf2 {[%clk 0:01:58]}  Nfe8 {[%clk 0:01:55]} 18. Rc1 {[%clk 0:01:53]}  Bf6 {[%clk 0:01:54]} 19. g4 {[%clk 0:01:39]}  Ng7 {[%clk 0:01:50]} 20. Ba3 {[%clk 0:01:37]}  Be8 {[%clk 0:01:35]} 21. Qd3 {[%clk 0:01:26]}  Bg6 {[%clk 0:01:34]} 22. Bh3 {[%clk 0:00:43]}  Be5 {[%clk 0:01:28]} 23. Rxe5 {[%clk 0:00:32]}  dxe5 {[%clk 0:01:29]} 24. Bxf8 {[%clk 0:00:33]}  Qxf8 {[%clk 0:01:29]} 25. d6 {[%clk 0:00:30]}  Rd8 {[%clk 0:01:21]} 26. Qc4+ {[%clk 0:00:20]}  Nce6 {[%clk 0:01:21]} 27. gxf5 {[%clk 0:00:20]}  Bxf5 {[%clk 0:01:20]} 28. Bxf5 {[%clk 0:00:20]}  Qxf5 {[%clk 0:01:21]} 29. Nce4 {[%clk 0:00:21]}  Qxf3 {[%clk 0:01:18]} 30. Qd3 {[%clk 0:00:12]}  Qf4 {[%clk 0:01:15]} 31. Qd1 {[%clk 0:00:05]}  Nd4 {[%clk 0:01:14]} 32. Rc7 {[%clk 0:00:05]}  Nf3+ {[%clk 0:01:12]} 33. Kf1 {[%clk 0:00:05]}  Nxh2+ {[%clk 0:01:10]} 34. Kg2 {[%clk 0:00:06]}  Kh7 {[%clk 0:00:58]} 35. Qd3 {[%clk 0:00:05]}  Kh8 {[%clk 0:00:56]} 36. d7 {[%clk 0:00:05]}  Ne6 {[%clk 0:00:52]} 37. Rc8 {[%clk 0:00:05]}  Ng4 {[%clk 0:00:46]} 38. Rxd8+ {[%clk 0:00:05]}  Nxd8 {[%clk 0:00:45]} 39. Nxg4 {[%clk 0:00:05]}  Qxg4+ {[%clk 0:00:45]} 40. Ng3 {[%clk 0:00:04]}  Kg7 {[%clk 0:00:39]} 41. Qd5 {[%clk 0:00:04]}  Kf6 {[%clk 0:00:36]} 42. Kf2 {[%clk 0:00:05]}  Qd4+ {[%clk 0:00:34]} 43. Qxd4 {[%clk 0:00:03]}  exd4 {[%clk 0:00:34]} 44. Kf3 {[%clk 0:00:03]}  Ke6 {[%clk 0:00:33]} 45. Ke4 {[%clk 0:00:03]}  Nc6 {[%clk 0:00:30]} 46. Nf5 {[%clk 0:00:03]}  d3 {[%clk 0:00:26]} 0-1


[Site "https://www.chess.com"]

[Event "Titled Tuesday Blitz December 7 2021"]
[White "Artemenko, Oleg"]
[Black "Berezin, Viktor"]
[WhiteFideId "14201798"]
[BlackFideId "14107872"]
[WhiteElo "2287"]
[BlackElo "2310"]
[Result "1-0"]
[Round "09"]
[TimeControl "180+1"]
[Date "2021.12.07"]
[WhiteClock "0:01:36"]
[BlackClock "0:00:01"]

1. d4 {[%clk 0:03:00]}  Nf6 {[%clk 0:02:59]} 2. Nc3 {[%clk 0:02:59]}  g6 {[%clk 0:02:56]} 3. e4 {[%clk 0:02:58]}  Bg7 {[%clk 0:02:55]} 4. e5 {[%clk 0:02:58]}  Ng8 {[%clk 0:02:53]} 5. f4 {[%clk 0:02:59]}  d6 {[%clk 0:02:53]} 6. Nf3 {[%clk 0:02:59]}  c5 {[%clk 0:02:53]} 7. dxc5 {[%clk 0:02:59]}  Nc6 {[%clk 0:02:34]} 8. cxd6 {[%clk 0:02:58]}  exd6 {[%clk 0:02:32]} 9. Be3 {[%clk 0:02:51]}  dxe5 {[%clk 0:02:25]} 10. Qxd8+ {[%clk 0:02:52]}  Kxd8 {[%clk 0:02:24]} 11. O-O-O {[%clk 0:02:53]}  Kc7 {[%clk 0:02:13]} 12. Nb5+ {[%clk 0:02:43]}  Kb8 {[%clk 0:02:12]} 13. fxe5 {[%clk 0:02:44]}  Be6 {[%clk 0:02:09]} 14. Nfd4 {[%clk 0:02:39]}  Nxd4 {[%clk 0:02:02]} 15. Bxd4 {[%clk 0:02:40]}  Ne7 {[%clk 0:02:01]} 16. Bc5 {[%clk 0:02:34]}  Nc6 {[%clk 0:01:55]} 17. Bd6+ {[%clk 0:02:32]}  Kc8 {[%clk 0:01:55]} 18. Be2 {[%clk 0:02:33]}  Bxe5 {[%clk 0:01:47]} 19. Bxe5 {[%clk 0:02:32]}  Nxe5 {[%clk 0:01:48]} 20. Rhe1 {[%clk 0:02:33]}  a6 {[%clk 0:01:41]} 21. Nd4 {[%clk 0:02:31]}  Re8 {[%clk 0:01:33]} 22. Bf1 {[%clk 0:02:21]}  Bg4 {[%clk 0:01:30]} 23. Nf3 {[%clk 0:02:19]}  Bxf3 {[%clk 0:01:25]} 24. gxf3 {[%clk 0:02:20]}  Kc7 {[%clk 0:01:26]} 25. Re3 {[%clk 0:02:19]}  Nc6 {[%clk 0:01:05]} 26. Rc3 {[%clk 0:02:17]}  Re5 {[%clk 0:01:01]} 27. f4 {[%clk 0:02:13]}  Re4 {[%clk 0:00:55]} 28. f5 {[%clk 0:02:08]}  gxf5 {[%clk 0:00:52]} 29. Bd3 {[%clk 0:02:08]}  Re5 {[%clk 0:00:41]} 30. Rf1 {[%clk 0:02:07]}  Rae8 {[%clk 0:00:40]} 31. Kd2 {[%clk 0:02:06]}  Kd6 {[%clk 0:00:34]} 32. Rc4 {[%clk 0:02:04]}  Ne7 {[%clk 0:00:23]} 33. Rd4+ {[%clk 0:02:02]}  Kc7 {[%clk 0:00:21]} 34. Rh4 {[%clk 0:01:57]}  Kd6 {[%clk 0:00:11]} 35. Rxh7 {[%clk 0:01:56]}  Ke6 {[%clk 0:00:11]} 36. Bc4+ {[%clk 0:01:49]}  Kd6 {[%clk 0:00:09]} 37. Rxf7 {[%clk 0:01:47]}  b5 {[%clk 0:00:06]} 38. Bd3 {[%clk 0:01:47]}  Rh8 {[%clk 0:00:03]} 39. Rf6+ {[%clk 0:01:47]}  Kd7 {[%clk 0:00:02]} 40. Rf2 {[%clk 0:01:48]}  Rh5 {[%clk 0:00:02]} 41. Rxa6 {[%clk 0:01:48]}  Nd5 {[%clk 0:00:02]} 42. Bxb5+ {[%clk 0:01:47]}  Kc7 {[%clk 0:00:02]} 43. Bd3 {[%clk 0:01:47]}  Ne3 {[%clk 0:00:01]} 44. Re2 {[%clk 0:01:41]}  Ng4 {[%clk 0:00:01]} 45. Rg6 {[%clk 0:01:36]} 1-0


[Site "https://www.chess.com"]